lending/lending_fUSD_20241115
["ID","MTS","AMOUNT","RATE_DAILY","PERIOD"]
[342320453,1731702646786,-500.0,9.999e-05,2]
[342320455,1731702646795,-500.0,9.999e-05,2]
[342320457,1731702646804,-500.0,9.999e-05,2]
[342320459,1731702646813,-500.0,9.999e-05,2]
[342320461,1731702646822,-500.0,9.999e-05,2]
[342320463,1731702646833,-500.0,9.999e-05,2]
[342320465,1731702646842,-296.88,9.999e-05,2]
[342320467,1731702646852,-128883.86168849,0.0001,2]
[342320469,1731702646866,-11459.32520293,0.0001,2]
[342320471,1731702646877,-311.42,0.0001,2]
[342320473,1731702646888,-10873.83641748,0.0001,2]
[342320475,1731702646900,-397.66172814,0.0001,2]
[342320477,1731702646911,-11444.947811,0.0001,2]
[342320480,1731702646922,-335.504,0.0001,2]
[342320482,1731702646933,-1889.18144661,0.0001,2]
[342320484,1731702646944,-26538.02927892,0.0001,2]
[342320486,1731702646955,-5382.21342776,0.0001,2]
[342320488,1731702646966,-2704.95543755,0.0001,2]
[342320490,1731702646978,-1661.57303323,0.0001,2]
[342320492,1731702646989,-2020.12,0.0001,2]
[342320495,1731702646999,-341.04,0.0001,2]
[342320497,1731702647010,-2541.3138532,0.0001,2]
[342320499,1731702647021,-3621.23493034,0.0001,2]
[342320501,1731702647032,-6008.64640002,0.0001,2]
[342320503,1731702647043,-700.50203565,0.0001,2]
[342320505,1731702647054,-11772.093878,0.0001,2]
[342320542,1731702647556,-15712.5600004,0.0001,2]
[342320544,1731702647568,-1141.6,0.0001,2]
[342320546,1731702647580,-1370.93139,0.0001,2]
[342320548,1731702647592,-471599.9999987,0.0001,2]
[342320550,1731702647603,-25747.82360969,0.0001,2]
[342320553,1731702647614,-1538.21547173,0.0001,2]
[342320555,1731702647628,-1113.68602169,0.0001,2]
[342320557,1731702647639,-1025.17400873,0.0001,2]
[342320559,1731702647650,-94929.01271705,0.0001,2]
[342320562,1731702647665,-905.95382998,0.0001,2]
[342320564,1731702647676,-1689.97824036,0.0001,2]
[342320566,1731702647688,-1597.92266001,0.0001,2]
[342320568,1731702647699,-3030.45161098,0.0001,2]
[342320689,1731702655908,2400.0,8.438e-05,2]
[342320690,1731702656120,500.0,8.438e-05,2]
[342320691,1731702656486,1300.0,8.438e-05,2]
[342320693,1731702808514,500.0,0.00025,120]
[342320694,1731702814242,2000.0,0.00025,120]
[342320695,1731702818636,227.849418,0.00025,120]
[342320696,1731702821258,200.0,0.00025,120]
[342320697,1731702907342,1010.87,8.219e-05,2]
[342320700,1731703589609,960.32,8.219e-05,2]
[342320709,1731703832085,-1000.0,8.897e-05,2]
[342320710,1731703832094,-777.62,8.923e-05,2]
[342320711,1731703832103,-23.73565316,8.935e-05,2]
[342320712,1731703832114,-226.26434684,8.935e-05,2]
[342320713,1731703832123,-227.86565316,8.954e-05,2]
[342320714,1731703832135,-203.24434684,8.954e-05,2]
[342320715,1731703832145,-1500.0,8.954e-05,2]
[342320716,1731703832154,-300.0,8.975e-05,2]
[342320717,1731703832162,-996.75272299,8.976e-05,2]
[342320718,1731703832173,-6534.3000006,8.976e-05,2]
[342320719,1731703832195,-4621.76321947,8.976e-05,2]
[342320720,1731703832207,-11747.18405694,8.976e-05,2]
[342320721,1731703832216,-250.0,9.039e-05,2]
[342320722,1731703832225,-177.251,9.31e-05,2]
[342320723,1731703832234,-1516.857,9.31e-05,2]
[342320724,1731703832243,-150.0,9.342e-05,2]
[342320725,1731703832253,-150.0,9.399e-05,2]
[342320726,1731703832261,-27088.9087,9.4e-05,2]
[342320727,1731703832270,-42404.79922267,9.5e-05,2]
[342320728,1731703832285,-1828.9392,9.5e-05,2]
[342320729,1731703832555,-6140.0,9.5e-05,2]
[342320730,1731703832567,-374.77521645,9.5e-05,2]
[342320733,1731703838127,-61743.90309245,9.5e-05,2]
[342320734,1731703838365,-635.48,9.5e-05,2]
[342320735,1731703838377,-2591.70850967,9.5e-05,2]
[342320736,1731703838393,-291.7635,9.5e-05,2]
[342320737,1731703838413,-2818.33150359,9.5e-05,2]
[342320738,1731703838522,-394816.60822885,9.5e-05,2]
[342320739,1731703838534,-299.46136484,9.589e-05,2]
[342320740,1731703838543,-500.0,9.589e-05,2]
[342320741,1731703838553,-500.0,9.589e-05,2]
[342320742,1731703838563,-500.0,9.589e-05,2]
[342320743,1731703838573,-557.64,9.589e-05,2]
[342320744,1731703838582,-500.0,9.589e-05,2]
[342320745,1731703838592,-500.0,9.589e-05,2]
[342320746,1731703838601,-500.0,9.589e-05,2]
[342320747,1731703838611,-500.0,9.589e-05,2]
[342320748,1731703838621,-500.0,9.589e-05,2]
[342320749,1731703838630,-220.82,9.589e-05,2]
[342320751,1731703838639,-500.0,9.589e-05,2]
[342320753,1731703838648,-500.0,9.589e-05,2]
[342320755,1731703838658,-500.0,9.589e-05,2]
[342320756,1731703838668,-500.0,9.589e-05,2]
[342320757,1731703838677,-500.0,9.589e-05,2]
[342320758,1731703838687,-187.5,9.589e-05,2]
[342320759,1731703838696,-500.0,9.589e-05,2]
[342320760,1731703838705,-263.73,9.589e-05,2]
[342320761,1731703838715,-500.0,9.589e-05,2]
[342320762,1731703838725,-500.0,9.589e-05,2]
[342320763,1731703838735,-500.0,9.589e-05,2]
[342320764,1731703838744,-500.0,9.589e-05,2]
[342320765,1731703838753,-562.31,9.589e-05,2]
[342320766,1731703838762,-648.02,9.589e-05,2]
[342320767,1731703838771,-500.0,9.589e-05,2]
[342320768,1731703838785,-452.27843657,9.589e-05,2]
[342320769,1731703838794,-500.0,9.589e-05,2]
[342320770,1731703838804,-169.8,9.589e-05,2]
[342320771,1731703838813,-500.0,9.589e-05,2]
[342320772,1731703838822,-500.0,9.589e-05,2]
[342320773,1731703838832,-500.0,9.589e-05,2]
[342320774,1731703838842,-500.0,9.589e-05,2]
[342320775,1731703838852,-500.0,9.589e-05,2]
[342320776,1731703838861,-500.0,9.589e-05,2]
[342320777,1731703838871,-500.0,9.589e-05,2]
[342320778,1731703838881,-500.0,9.589e-05,2]
[342320779,1731703838891,-500.0,9.589e-05,2]
[342320780,1731703838901,-500.0,9.589e-05,2]
[342320781,1731703838912,-500.0,9.589e-05,2]
[342320782,1731703838922,-500.0,9.589e-05,2]
[342320783,1731703838932,-310.2440427,9.589e-05,2]
[342320784,1731703838942,-500.0,9.589e-05,2]
[342320785,1731703838953,-500.0,9.589e-05,2]
[342320786,1731703838963,-169.46,9.589e-05,2]
[342320787,1731703838972,-500.0,9.589e-05,2]
[342320788,1731703838982,-500.0,9.589e-05,2]
[342320789,1731703838994,-500.0,9.589e-05,2]
[342320790,1731703839004,-500.0,9.589e-05,2]
[342320791,1731703839014,-500.0,9.589e-05,2]
[342320792,1731703839024,-500.0,9.589e-05,2]
[342320793,1731703839035,-500.0,9.589e-05,2]
[342320794,1731703839045,-500.0,9.589e-05,2]
[342320795,1731703839055,-500.0,9.589e-05,2]
[342320796,1731703839064,-500.0,9.589e-05,2]
[342320797,1731703839073,-500.0,9.589e-05,2]
[342320798,1731703839083,-199.35,9.589e-05,2]
[342320799,1731703839092,-500.0,9.589e-05,2]
[342320800,1731703839101,-500.0,9.589e-05,2]
[342320801,1731703839110,-500.0,9.589e-05,2]
[342320802,1731703839120,-500.0,9.589e-05,2]
[342320803,1731703839129,-500.0,9.589e-05,2]
[342320804,1731703839139,-500.0,9.589e-05,2]
[342320805,1731703839148,-230.11,9.589e-05,2]
[342320806,1731703839158,-500.0,9.589e-05,2]
[342320807,1731703839167,-309.97,9.589e-05,2]
[342320808,1731703839176,-535.64,9.589e-05,2]
[342320809,1731703839185,-500.0,9.589e-05,2]
[342320810,1731703839195,-500.0,9.589e-05,2]
[342320811,1731703839204,-500.0,9.589e-05,2]
[342320812,1731703839213,-500.0,9.589e-05,2]
[342320813,1731703839223,-500.0,9.589e-05,2]
[342320814,1731703839233,-248.71610825,9.589e-05,2]
[342320815,1731703839242,-500.0,9.589e-05,2]
[342320816,1731703839253,-500.0,9.589e-05,2]
[342320817,1731703839263,-168.39,9.589e-05,2]
[342320818,1731703839273,-593.96,9.782e-05,2]
[342320819,1731703839285,-500.0,9.782e-05,2]
[342320820,1731703839295,-500.0,9.782e-05,2]
[342320821,1731703839305,-500.0,9.782e-05,2]
[342320822,1731703839315,-500.0,9.782e-05,2]
[342320823,1731703839324,-500.0,9.782e-05,2]
[342320824,1731703839334,-500.0,9.782e-05,2]
[342320825,1731703839344,-500.0,9.782e-05,2]
[342320826,1731703839353,-500.0,9.782e-05,2]
[342320827,1731703839363,-500.0,9.782e-05,2]
[342320828,1731703839372,-500.0,9.782e-05,2]
[342320829,1731703839382,-500.0,9.782e-05,2]
[342320830,1731703839392,-500.0,9.782e-05,2]
[342320831,1731703839401,-500.0,9.782e-05,2]
[342320832,1731703839411,-500.0,9.782e-05,2]
[342320833,1731703839420,-609.43,9.782e-05,2]
[342320834,1731703839430,-1053.40459021,9.8e-05,2]
[342320835,1731703839439,-2400.0,9.808e-05,2]
[342320836,1731703839450,-500.0,9.808e-05,2]
[342320837,1731703839459,-1300.0,9.808e-05,2]
[342320838,1731703839469,-585.84,9.815e-05,2]
[342320839,1731703839478,-420.0,9.872e-05,2]
[342320840,1731703839487,-21189.99085483,9.9e-05,2]
[342320841,1731703839497,-229.0,9.9e-05,2]
[342320842,1731703839506,-363.0,9.9e-05,2]
[342320843,1731703839516,-1000.0,9.9e-05,2]
[342320844,1731703839525,-202.92431215,9.973e-05,2]
[342320845,1731703839536,-500.0,9.973e-05,2]
[342320846,1731703839546,-160.9888551,9.973e-05,2]
[342320847,1731703839556,-170.58865727,9.973e-05,2]
[342320848,1731703839565,-601.28422647,9.99e-05,2]
[342320849,1731703839574,-384.9246421,9.99e-05,2]
[342320850,1731703839584,-161.659497,9.99e-05,2]
[342320851,1731703839593,-311.0682106,9.99e-05,2]
[342320852,1731703839602,-379.64623718,9.99e-05,2]
[342320853,1731703839612,-8500.0,9.991e-05,2]
[342320854,1731703839621,-161.659497,9.993e-05,2]
[342320855,1731703839631,-161.659497,9.993e-05,2]
[342320856,1731703839641,-161.659497,9.993e-05,2]
[342320857,1731703839650,-161.659497,9.993e-05,2]
[342320858,1731703839660,-161.659497,9.993e-05,2]
[342320859,1731703839669,-311.0682106,9.993e-05,2]
[342320860,1731703839678,-311.0682106,9.993e-05,2]
[342320861,1731703839688,-311.0682106,9.993e-05,2]
[342320862,1731703839698,-311.0682106,9.993e-05,2]
[342320863,1731703839707,-311.0682106,9.993e-05,2]
[342320864,1731703839718,-302.96,9.997e-05,2]
[342320865,1731703839727,-412.28,9.997e-05,2]
[342320866,1731703839737,-500.0,9.997e-05,2]
[342320867,1731703839747,-480.23,9.998e-05,2]
[342320868,1731703839757,-315.0,9.999e-05,2]
[342320869,1731703839767,-179.16,9.999e-05,2]
[342320870,1731703839777,-191.97,9.999e-05,2]
[342320871,1731703839787,-453.45,9.999e-05,2]
[342320872,1731703839796,-500.0,9.999e-05,2]
[342320873,1731703839806,-548.44,9.999e-05,2]
[342320874,1731703839816,-227.28254933,9.999e-05,2]
[342320875,1731703839825,-167.23,9.999e-05,2]
[342320876,1731703839835,-500.0,9.999e-05,2]
[342320877,1731703839844,-500.0,9.999e-05,2]
[342320878,1731703839854,-185.38,9.999e-05,2]
[342320879,1731703839863,-150.22,9.999e-05,2]
[342320880,1731703839873,-500.0,9.999e-05,2]
[342320882,1731703839883,-594.08,9.999e-05,2]
[342320884,1731703839892,-217.05,9.999e-05,2]
[342320885,1731703839902,-1407.0553302,9.999e-05,2]
[342320886,1731703839914,-78172.86065819,0.0001,2]
[342320889,1731703840056,-4541.537,0.0001,2]
[342320890,1731703840114,-9557.57699999,0.0001,2]
[342320891,1731703840126,-15398.90000001,0.0001,2]
[342320892,1731703840286,-427.47181177,0.0001,2]
[342320893,1731703840298,-485.6632728,0.0001,2]
[342320894,1731703840340,-39058.94014354,0.0001,2]
[342320897,1731703840352,-16141.4875678,0.0001,2]
[342320915,1731703843088,-182418.31581476,0.0001,2]
[342320927,1731703843144,-24631.37876429,0.0001,2]
[342320928,1731703843156,-4110.72000154,0.0001,2]
[342320929,1731703843202,-9477.97518923,0.0001,2]
[342320930,1731703843212,-10084.462338,0.0001,2]
[342320931,1731703843257,-655.4513982,0.0001,2]
[342320932,1731703843315,-2734.9,0.0001,2]
[342320939,1731703846059,-500.0,9.589e-05,2]
[342320941,1731703846068,-500.0,9.589e-05,2]
[342320942,1731703846077,-500.0,9.999e-05,2]
[342320943,1731703846087,-703.5276651,9.999e-05,2]
[342320944,1731703846096,-251.46872936,0.0001,2]
[342320945,1731703846111,-14280.78023601,0.0001,2]
[342320946,1731703846124,-430.41242668,0.0001,2]
[342320947,1731703846135,-375.85517104,0.0001,2]
[342320948,1731703846146,-1483.49375432,0.0001,2]
[342320949,1731703846157,-2054.573391,0.0001,2]
[342320950,1731703846179,-347.14482896,0.0001,2]
[342320951,1731703846190,-2234.21179589,0.0001,2]
[342320952,1731703846239,-2136128.86313507,0.0001,2]
[342320953,1731703846251,-6646.89595268,0.0001,2]
[342320954,1731703846263,-2192.36880359,0.0001,2]
[342320955,1731703846288,-76460.91646602,0.0001,2]
[342320956,1731703846299,-391.93289416,0.0001,2]
[342320957,1731703846310,-1748.9835148,0.0001,2]
[342320958,1731703846320,-454.89636972,0.0001,2]
[342320959,1731703846331,-136183.65169215,0.0001,2]
[342320960,1731703846343,-467922.1644728,0.0001,2]
[342320962,1731703846461,-432.87434618,0.0001,2]
[342320964,1731703846472,-13437.90100574,0.0001,2]
[342320966,1731703846483,-12658.58526291,0.0001,2]
[342320968,1731703846494,-1408.82174182,0.0001,2]
[342320970,1731703846505,-1221.72,0.0001,2]
[342320972,1731703846515,-456.80005735,0.0001,2]
[342320990,1731703866690,2000.0,8.438e-05,2]
[342320991,1731703866927,500.0,8.438e-05,2]
[342320992,1731703867128,1100.0,8.438e-05,2]
[342320994,1731704006699,500.0,0.00025,120]
[342321002,1731704019676,200.0,0.00025,120]
[342321003,1731704591553,912.3,8.219e-05,2]
[342321005,1731704636222,-388.81,8.739e-05,2]
[342321006,1731704636245,-411.19,8.782e-05,2]
[342321007,1731704637912,-800.0,8.782e-05,2]
[342321008,1731704639237,-800.0,8.782e-05,2]
[342321009,1731704640498,-800.0,8.782e-05,2]
[342321010,1731704641886,-800.0,8.782e-05,2]
[342321011,1731704650362,-150.0,8.782e-05,2]
[342321012,1731704651412,-150.0,8.782e-05,2]
[342321013,1731704652737,-150.0,8.782e-05,2]
[342321014,1731704654024,-150.0,8.782e-05,2]
[342321039,1731705032288,-1089.69,8.63e-05,2]
[342321040,1731705032412,-410.31,8.63e-05,2]
[342321041,1731705032422,-250.0,8.698e-05,2]
[342321042,1731705032432,-300.0,8.781e-05,2]
[342321043,1731705032441,-12453.86,8.782e-05,2]
[342321044,1731705032451,-1000.0,8.788e-05,2]
[342321045,1731705032460,-250.0,8.848e-05,2]
[342321046,1731705032469,-368.88,8.87e-05,2]
[342321047,1731705032481,-250.0,8.875e-05,2]
[342321048,1731705032490,-500.0,8.948e-05,2]
[342321049,1731705032501,-500.0,8.948e-05,2]
[342321050,1731705032511,-500.0,8.948e-05,2]
[342321051,1731705032520,-500.0,8.948e-05,2]
[342321052,1731705032530,-500.0,8.948e-05,2]
[342321053,1731705032540,-500.0,8.948e-05,2]
[342321054,1731705032549,-500.0,8.948e-05,2]
[342321055,1731705032559,-450.86527532,8.948e-05,2]
[342321056,1731705032568,-300.0,9e-05,3]
[342321057,1731705032578,-215.56,9.016e-05,2]
[342321058,1731705032587,-212.51,9.041e-05,2]
[342321059,1731705032597,-600.0,9.1e-05,3]
[342321060,1731705032606,-900.0,9.2e-05,3]
[342321061,1731705032616,-1200.0,9.3e-05,3]
[342321062,1731705032626,-1500.0,9.4e-05,3]
[342321063,1731705032635,-300.0,9.5e-05,3]
[342321064,1731705032645,-150.0,9.588e-05,2]
[342321065,1731705032655,-407.70547514,9.589e-05,2]
[342321066,1731705032665,-500.0,9.589e-05,2]
[342321067,1731705032675,-500.0,9.589e-05,2]
[342321068,1731705032685,-500.0,9.589e-05,2]
[342321069,1731705032695,-500.0,9.589e-05,2]
[342321070,1731705032706,-500.0,9.589e-05,2]
[342321071,1731705032716,-500.0,9.589e-05,2]
[342321072,1731705032728,-500.0,9.589e-05,2]
[342321073,1731705032738,-500.0,9.589e-05,2]
[342321074,1731705032748,-500.0,9.589e-05,2]
[342321075,1731705032758,-500.0,9.589e-05,2]
[342321076,1731705032767,-500.0,9.589e-05,2]
[342321077,1731705032777,-500.0,9.589e-05,2]
[342321078,1731705032787,-500.0,9.589e-05,2]
[342321079,1731705032796,-500.0,9.589e-05,2]
[342321080,1731705032806,-500.0,9.589e-05,2]
[342321081,1731705032817,-500.0,9.589e-05,2]
[342321082,1731705032826,-500.0,9.589e-05,2]
[342321083,1731705032836,-500.0,9.589e-05,2]
[342321084,1731705032845,-500.0,9.589e-05,2]
[342321085,1731705032854,-500.0,9.589e-05,2]
[342321086,1731705032864,-500.0,9.589e-05,2]
[342321087,1731705032874,-500.0,9.589e-05,2]
[342321088,1731705032883,-500.0,9.589e-05,2]
[342321089,1731705032893,-500.0,9.589e-05,2]
[342321090,1731705032902,-500.0,9.589e-05,2]
[342321091,1731705032912,-500.0,9.589e-05,2]
[342321092,1731705032921,-500.0,9.589e-05,2]
[342321093,1731705032930,-500.0,9.589e-05,2]
[342321094,1731705032939,-500.0,9.589e-05,2]
[342321095,1731705032949,-500.0,9.589e-05,2]
[342321096,1731705032959,-500.0,9.589e-05,2]
[342321097,1731705032968,-500.0,9.589e-05,2]
[342321098,1731705032978,-500.0,9.589e-05,2]
[342321099,1731705032987,-500.0,9.589e-05,2]
[342321100,1731705032996,-500.0,9.589e-05,2]
[342321101,1731705033006,-569.6,9.589e-05,2]
[342321102,1731705033015,-500.0,9.589e-05,2]
[342321103,1731705033025,-500.0,9.589e-05,2]
[342321104,1731705033035,-290.0268823,9.589e-05,2]
[342321105,1731705033046,-500.0,9.589e-05,2]
[342321106,1731705033055,-500.0,9.589e-05,2]
[342321107,1731705033065,-223.67552898,9.589e-05,2]
[342321108,1731705033079,-276.32447102,9.589e-05,2]
[342321109,1731705033088,-160.60821398,9.589e-05,2]
[342321110,1731705033099,-339.39178602,9.589e-05,2]
[342321111,1731705033109,-500.0,9.589e-05,2]
[342321112,1731705033119,-500.0,9.589e-05,2]
[342321113,1731705033128,-500.0,9.589e-05,2]
[342321114,1731705033138,-500.0,9.589e-05,2]
[342321115,1731705033147,-500.0,9.589e-05,2]
[342321116,1731705033157,-500.0,9.589e-05,2]
[342321117,1731705033167,-606.565614,9.589e-05,2]
[342321118,1731705033177,-500.0,9.589e-05,2]
[342321119,1731705033187,-500.0,9.589e-05,2]
[342321120,1731705033197,-500.0,9.589e-05,2]
[342321121,1731705033206,-500.0,9.589e-05,2]
[342321122,1731705033216,-500.0,9.589e-05,2]
[342321123,1731705033225,-500.0,9.589e-05,2]
[342321124,1731705033237,-200.0,9.6e-05,2]
[342321125,1731705033247,-300.0,9.6e-05,3]
[342321126,1731705033256,-420.0,9.66e-05,2]
[342321127,1731705033266,-300.0,9.7e-05,3]
[342321128,1731705033276,-1910.744,9.786e-05,2]
[342321129,1731705033286,-600.0,9.8e-05,2]
[342321130,1731705033296,-300.0,9.8e-05,3]
[342321131,1731705033306,-2000.0,9.808e-05,2]
[342321132,1731705033316,-500.0,9.808e-05,2]
[342321133,1731705033326,-1100.0,9.808e-05,2]
[342321134,1731705033338,-1000.0,9.887e-05,2]
[342321135,1731705033349,-13590.5594,9.899e-05,2]
[342321136,1731705033358,-565.1159,9.899e-05,2]
[342321137,1731705033369,-7297.8016,9.899e-05,2]
[342321138,1731705033379,-1000.0,9.899e-05,2]
[342321139,1731705033389,-5000.0,9.899e-05,2]
[342321140,1731705033399,-6605.7408292,9.9e-05,2]
[342321141,1731705033409,-305.0,9.9e-05,3]
[342321142,1731705033419,-160.82300891,9.973e-05,2]
[342321143,1731705033429,-500.0,9.973e-05,2]
[342321144,1731705033439,-500.0,9.973e-05,2]
[342321145,1731705033448,-152.15403772,9.973e-05,2]
[342321146,1731705033458,-162.19593809,9.973e-05,2]
[342321147,1731705033467,-501.84112349,9.973e-05,2]
[342321148,1731705033479,-500.0,9.973e-05,2]
[342321149,1731705033488,-500.0,9.973e-05,2]
[342321150,1731705033498,-500.0,9.973e-05,2]
[342321151,1731705033508,-368.88,9.978e-05,2]
[342321152,1731705033518,-500.0,9.998e-05,2]
[342321153,1731705033528,-441.92011527,9.998e-05,2]
[342321154,1731705033538,-500.0,9.998e-05,2]
[342321155,1731705033548,-500.0,9.998e-05,2]
[342321156,1731705033559,-642.41,9.998e-05,2]
[342321157,1731705033569,-500.0,9.998e-05,2]
[342321158,1731705033579,-500.0,9.998e-05,2]
[342321159,1731705033588,-500.0,9.998e-05,2]
[342321160,1731705033597,-500.0,9.998e-05,2]
[342321161,1731705033607,-500.0,9.998e-05,2]
[342321162,1731705033617,-881.82,9.998e-05,2]
[342321163,1731705033627,-500.0,9.998e-05,2]
[342321164,1731705033637,-500.0,9.998e-05,2]
[342321165,1731705033647,-438.96,9.998e-05,2]
[342321166,1731705033657,-500.0,9.998e-05,2]
[342321167,1731705033666,-500.0,9.998e-05,2]
[342321168,1731705033676,-351.76383255,9.999e-05,2]
[342321169,1731705033685,-500.0,9.999e-05,2]
[342321170,1731705033695,-500.0,9.999e-05,2]
[342321171,1731705033705,-500.0,9.999e-05,2]
[342321172,1731705033715,-337.55,9.999e-05,2]
[342321173,1731705033727,-500.0,9.999e-05,2]
[342321174,1731705033737,-500.0,9.999e-05,2]
[342321175,1731705033747,-500.0,9.999e-05,2]
[342321176,1731705033757,-500.0,9.999e-05,2]
[342321177,1731705033767,-500.0,9.999e-05,2]
[342321178,1731705033777,-500.0,9.999e-05,2]
[342321179,1731705033788,-500.0,9.999e-05,2]
[342321180,1731705033802,-422.55,9.999e-05,2]
[342321181,1731705033814,-500.0,9.999e-05,2]
[342321182,1731705033825,-500.0,9.999e-05,2]
[342321183,1731705033835,-500.0,9.999e-05,2]
[342321184,1731705033845,-584.18,9.999e-05,2]
[342321185,1731705033855,-500.0,9.999e-05,2]
[342321186,1731705033864,-393.51,9.999e-05,2]
[342321187,1731705033874,-500.0,9.999e-05,2]
[342321188,1731705034118,-500.0,9.999e-05,2]
[342321189,1731705034128,-495.15,9.999e-05,2]
[342321190,1731705034137,-500.0,9.999e-05,2]
[342321191,1731705034146,-500.0,9.999e-05,2]
[342321192,1731705034156,-500.0,9.999e-05,2]
[342321193,1731705034165,-500.0,9.999e-05,2]
[342321194,1731705034175,-500.0,9.999e-05,2]
[342321195,1731705034184,-456.29,9.999e-05,2]
[342321196,1731705034193,-612.92,9.999e-05,2]
[342321197,1731705034203,-500.0,9.999e-05,2]
[342321198,1731705034212,-500.0,9.999e-05,2]
[342321199,1731705034221,-526.05,9.999e-05,2]
[342321200,1731705034231,-500.0,9.999e-05,2]
[342321201,1731705034241,-500.0,9.999e-05,2]
[342321202,1731705034250,-594.07,9.999e-05,2]
[342321203,1731705034259,-500.0,9.999e-05,2]
[342321204,1731705034268,-500.0,9.999e-05,2]
[342321205,1731705034278,-500.0,9.999e-05,2]
[342321206,1731705034287,-207.41,9.999e-05,2]
[342321207,1731705034297,-500.0,9.999e-05,2]
[342321208,1731705034307,-500.0,9.999e-05,2]
[342321209,1731705034316,-500.0,9.999e-05,2]
[342321210,1731705034326,-500.0,9.999e-05,2]
[342321211,1731705034336,-500.0,9.999e-05,2]
[342321212,1731705034346,-539.37,9.999e-05,2]
[342321213,1731705034357,-500.0,9.999e-05,2]
[342321214,1731705034366,-500.0,9.999e-05,2]
[342321215,1731705034375,-500.0,9.999e-05,2]
[342321216,1731705034384,-500.0,9.999e-05,2]
[342321217,1731705034395,-500.0,9.999e-05,2]
[342321218,1731705034406,-500.0,9.999e-05,2]
[342321219,1731705034415,-472.6508634,9.999e-05,2]
[342321220,1731705034429,-27.3491366,9.999e-05,2]
[342321221,1731705034439,-500.0,9.999e-05,2]
[342321222,1731705034448,-500.0,9.999e-05,2]
[342321223,1731705034458,-500.0,9.999e-05,2]
[342321224,1731705034468,-500.0,9.999e-05,2]
[342321225,1731705034478,-216.7,9.999e-05,2]
[342321226,1731705034488,-500.0,9.999e-05,2]
[342321227,1731705034498,-500.0,9.999e-05,2]
[342321228,1731705034508,-500.0,9.999e-05,2]
[342321229,1731705034518,-500.0,9.999e-05,2]
[342321230,1731705034527,-500.0,9.999e-05,2]
[342321231,1731705034537,-500.0,9.999e-05,2]
[342321232,1731705034546,-500.0,9.999e-05,2]
[342321233,1731705034555,-500.0,9.999e-05,2]
[342321234,1731705034564,-500.0,9.999e-05,2]
[342321235,1731705034573,-500.0,9.999e-05,2]
[342321236,1731705034582,-355.86,9.999e-05,2]
[342321237,1731705034591,-500.0,9.999e-05,2]
[342321238,1731705034600,-500.0,9.999e-05,2]
[342321239,1731705034609,-500.0,9.999e-05,2]
[342321240,1731705034618,-153.36,9.999e-05,2]
[342321241,1731705034627,-500.0,9.999e-05,2]
[342321242,1731705034636,-278.42,9.999e-05,2]
[342321243,1731705034645,-500.0,9.999e-05,2]
[342321244,1731705034654,-500.0,9.999e-05,2]
[342321245,1731705034663,-500.0,9.999e-05,2]
[342321246,1731705034672,-500.0,9.999e-05,2]
[342321247,1731705034681,-359.67,9.999e-05,2]
[342321248,1731705034690,-500.0,9.999e-05,2]
[342321249,1731705034699,-500.0,9.999e-05,2]
[342321250,1731705034708,-433.20318306,9.999e-05,2]
[342321251,1731705034718,-500.0,9.999e-05,2]
[342321252,1731705034730,-237.27,9.999e-05,2]
[342321253,1731705034739,-500.0,9.999e-05,2]
[342321254,1731705034749,-519.69,9.999e-05,2]
[342321255,1731705034758,-172.67,9.999e-05,2]
[342321256,1731705034767,-500.0,9.999e-05,2]
[342321257,1731705034777,-500.0,9.999e-05,2]
[342321258,1731705034787,-500.0,9.999e-05,2]
[342321259,1731705034796,-360.57107877,9.999e-05,2]
[342321260,1731705034805,-500.0,9.999e-05,2]
[342321261,1731705034815,-500.0,9.999e-05,2]
[342321262,1731705034823,-448.98,9.999e-05,2]